bitfinex-derivatives/quotes_BTCF0:USTF0_20250729
["timestamp","ask_amount","ask_price","bid_price","bid_amount"]
[1753804541230,0.7597556,117560.0,117550.0,0.77420753]
[1753804541828,0.7597556,117560.0,117550.0,0.5309501]
[1753804542524,0.17687,117560.0,117550.0,1.47928753]
[1753804542729,0.121,117560.0,117550.0,1.78355798]
[1753804543434,0.121,117560.0,117550.0,1.72254496]
[1753804543936,0.0789111,117560.0,117550.0,2.14468096]
[1753804544135,0.04904,117580.0,117570.0,0.1701212]
[1753804544339,0.11904,117580.0,117570.0,1.84005863]
[1753804544627,0.033233,117580.0,117570.0,2.32134289]
[1753804544834,0.033233,117580.0,117570.0,2.32962859]
[1753804545228,0.033233,117580.0,117570.0,2.09475969]
[1753804545429,0.033233,117580.0,117570.0,2.07957987]
[1753804545629,0.033233,117580.0,117570.0,2.01844833]
[1753804546033,0.033233,117580.0,117570.0,1.31336833]
[1753804546234,0.033233,117580.0,117570.0,2.01836833]
[1753804546738,0.034233,117580.0,117570.0,2.01836833]
[1753804547035,0.034233,117580.0,117570.0,2.09467969]
[1753804547335,0.033233,117580.0,117570.0,2.09467969]
[1753804547935,0.033233,117580.0,117570.0,2.09459969]
[1753804549625,0.033233,117580.0,117570.0,1.92449569]
[1753804550131,0.399254,117610.0,117600.0,0.1700777]
[1753804550338,0.5092532,117610.0,117600.0,1.83985513]
[1753804550731,0.56693,117610.0,117600.0,1.83985513]
[1753804550929,0.15904,117610.0,117600.0,2.08311256]
[1753804551632,0.15904,117610.0,117600.0,1.83985513]
[1753804552227,0.4058535,117610.0,117600.0,1.5965977]
[1753804552533,0.7369935,117610.0,117600.0,1.83977513]
[1753804554537,0.7369935,117610.0,117600.0,1.83973513]
[1753804564243,0.5092531,117610.0,117600.0,1.83973513]
[1753804564438,0.3291031,117610.0,117600.0,1.83973513]
[1753804565345,0.6335931,117610.0,117600.0,1.83973513]
[1753804565642,0.5808931,117610.0,117600.0,1.83973513]
[1753804565837,0.7369931,117610.0,117600.0,1.83957513]
[1753804566338,0.7369931,117610.0,117600.0,1.83953513]
[1753804566643,0.11,117610.0,117600.0,2.08279256]
[1753804566844,0.15904,117610.0,117600.0,2.08279256]
[1753804567040,0.11,117610.0,117600.0,2.08279256]
[1753804567646,0.15904,117610.0,117600.0,2.08279256]
[1753804568346,0.7369929,117610.0,117600.0,1.5962777]
[1753804568942,0.7369929,117610.0,117600.0,1.83953513]
[1753804570050,0.7369929,117610.0,117600.0,0.8916777]
[1753804570346,0.7369929,117610.0,117600.0,0.7216]
[1753804570650,0.98025033,117610.0,117600.0,1.42612]
[1753804570842,0.98025033,117610.0,117600.0,0.7216]
[1753804571249,0.98025033,117610.0,117600.0,0.3608]
[1753804571842,0.98025033,117610.0,117600.0,0.5308773]
[1753804572040,0.7369929,117610.0,117600.0,0.5308773]
[1753804572346,0.7369929,117610.0,117600.0,0.77413473]
[1753804572943,0.7369929,117610.0,117600.0,1.13493473]
[1753804573755,0.7369929,117610.0,117600.0,0.8916773]
[1753804574448,0.75561873,117610.0,117600.0,0.8916773]
[1753804574647,0.7369929,117610.0,117600.0,0.8916773]
[1753804575244,0.6652629,117610.0,117600.0,0.8916773]
[1753804575444,0.75182214,117610.0,117600.0,0.8916773]
[1753804575648,0.75182214,117610.0,117600.0,0.5308773]
[1753804577948,0.99507957,117610.0,117600.0,0.3608]
[1753804578252,0.99507957,117610.0,117600.0,1.2353573]
[1753804579054,0.75182214,117610.0,117600.0,1.06528]
[1753804579255,0.75182214,117610.0,117600.0,1.2353573]
[1753804579553,0.75182214,117610.0,117600.0,1.06528]
[1753804579947,0.75182214,117610.0,117600.0,0.5308773]
[1753804580446,0.75182214,117610.0,117600.0,0.3608]
[1753804580647,0.99507957,117610.0,117600.0,0.3608]
[1753804581158,0.99507957,117610.0,117600.0,0.5308773]
[1753804581742,0.75182214,117610.0,117600.0,0.5308773]
[1753804582852,0.75182214,117610.0,117600.0,0.3608]
[1753804583355,0.75182214,117610.0,117600.0,0.5308774]
[1753804583556,0.75182214,117610.0,117600.0,0.3608]
[1753804584054,0.4546073,117600.0,117590.0,1.0652]
[1753804584353,0.6173918,117590.0,117580.0,0.65346888]
[1753804584549,0.7273918,117590.0,117580.0,0.59246661]
[1753804585653,0.7273918,117590.0,117580.0,0.59446661]
[1753804586748,1.4317518,117590.0,117580.0,0.59546661]
[1753804587147,1.4317518,117590.0,117580.0,0.83672404]
[1753804587643,0.15917,117590.0,117580.0,0.83672404]
[1753804588557,0.15917,117590.0,117580.0,0.83572404]
[1753804589058,0.3292619,117590.0,117580.0,0.83572404]
[1753804589356,0.15917,117590.0,117580.0,0.83572404]
[1753804589545,0.15917,117590.0,117580.0,0.83672404]
[1753804589951,0.15917,117590.0,117580.0,0.83772404]
[1753804590565,0.15917,117590.0,117580.0,1.54204404]
[1753804590758,0.5085319,117590.0,117580.0,1.64069238]
[1753804590963,0.7273919,117590.0,117580.0,0.55195321]
[1753804591268,1.77357767,117590.0,117580.0,0.55195321]
[1753804591470,1.77357767,117590.0,117580.0,0.5329064]
[1753804591672,1.4316719,117590.0,117580.0,0.5329064]
[1753804592270,1.4316719,117590.0,117580.0,0.1721064]
[1753804592773,1.4316719,117590.0,117580.0,0.1711064]
[1753804592961,2.30446567,117590.0,117580.0,0.002]
[1753804593270,0.6174209,117570.0,117560.0,0.59193347]
[1753804593458,1.4316609,117570.0,117560.0,0.59193347]
[1753804594166,0.11,117570.0,117560.0,1.63811924]
[1753804594865,0.11,117570.0,117560.0,1.74723697]
[1753804595373,0.11,117570.0,117560.0,1.80833426]
[1753804595670,0.11,117570.0,117560.0,1.80933426]
[1753804596064,0.11,117570.0,117560.0,1.74823697]
[1753804596259,0.11,117570.0,117560.0,1.81770231]
[1753804596463,0.111,117570.0,117560.0,1.81870231]
[1753804596966,0.16017,117570.0,117560.0,1.81870231]
[1753804597166,0.15917,117570.0,117560.0,1.64958231]
[1753804597670,0.15917,117570.0,117560.0,1.70969258]
[1753804598572,0.15917,117570.0,117560.0,1.70769258]
[1753804598772,0.15917,117570.0,117560.0,1.70869258]
[1753804599667,0.11,117570.0,117560.0,1.70869258]
[1753804600263,0.11,117570.0,117560.0,1.64758231]
[1753804601773,0.11,117570.0,117560.0,1.81770231]
[1753804601964,0.11,117570.0,117560.0,1.64758231]
[1753804602570,0.5085607,117570.0,117560.0,1.30567654]
[1753804602768,0.7274207,117570.0,117560.0,1.2360112]
[1753804603071,0.7274207,117570.0,117560.0,1.29712147]
[1753804603773,0.11,117570.0,117560.0,1.57791697]
[1753804603972,0.11,117570.0,117560.0,1.63902724]
[1753804604767,0.11,117570.0,117560.0,1.57791697]
[1753804604971,0.11,117570.0,117560.0,1.63902724]
[1753804605471,0.083146,117570.0,117560.0,1.63902724]
[1753804605973,0.083146,117570.0,117560.0,1.70776151]
[1753804606376,0.083146,117570.0,117560.0,1.64765124]
[1753804606768,0.083146,117570.0,117560.0,1.64965124]
[1753804607368,0.5671,117600.0,117590.0,0.1700917]
[1753804607677,0.15822,117600.0,117590.0,1.99874047]
[1753804608073,0.30508,117600.0,117590.0,1.93759747]
[1753804608277,0.15822,117600.0,117590.0,1.93759747]
[1753804608977,0.15822,117600.0,117590.0,1.94590198]
[1753804609773,0.15822,117600.0,117590.0,2.00704498]
[1753804610381,0.15822,117600.0,117590.0,2.00804498]
[1753804610581,0.15822,117600.0,117590.0,1.94690198]
[1753804610783,0.15822,117600.0,117590.0,1.93859747]
[1753804611381,0.15822,117600.0,117590.0,1.99970296]
[1753804611876,0.38438,117600.0,117590.0,1.99970296]
[1753804612082,0.45905,117600.0,117590.0,1.99970296]
[1753804612474,0.38438,117600.0,117590.0,1.99970296]
[1753804612777,0.15822,117600.0,117590.0,1.99970296]
[1753804614485,0.7318472,117600.0,117590.0,1.99970296]
[1753804615177,0.7318472,117600.0,117590.0,0.95379719]
[1753804615479,0.7318472,117600.0,117590.0,1.65751719]
[1753804616580,0.7318472,117600.0,117590.0,1.5953717]
[1753804616780,1.07375297,117600.0,117590.0,0.3608]
[1753804616985,1.31106227,117600.0,117590.0,0.3608]
[1753804617182,2.01474227,117600.0,117590.0,0.3608]
[1753804617579,0.6218617,117590.0,117580.0,0.3608]
[1753804617785,0.6218761,117580.0,117570.0,0.5309206]
[1753804617987,0.7318761,117580.0,117570.0,0.5309206]
[1753804618482,0.6518861,117580.0,117570.0,0.5309206]
[1753804618683,0.7318761,117580.0,117570.0,0.5309206]
[1753804619285,0.7318761,117580.0,117570.0,0.3608]
[1753804621589,0.92692187,117580.0,117570.0,0.3608]
[1753804621891,1.07378187,117580.0,117570.0,0.3608]
[1753804623083,0.7318761,117580.0,117570.0,0.5309206]
[1753804623683,1.4355161,117580.0,117570.0,0.3608]
[1753804625984,1.77742187,117580.0,117570.0,0.3608]
[1753804626183,1.4355161,117580.0,117570.0,0.3608]
[1753804627989,1.4355161,117580.0,117570.0,0.5309208]
[1753804628891,1.4353961,117580.0,117570.0,0.5309208]
[1753804629387,0.7318761,117580.0,117570.0,0.5309208]
[1753804629591,1.4353561,117580.0,117570.0,0.5309208]
[1753804631786,0.4990152,117560.0,117550.0,0.3608]
[1753804631988,0.7495384,117550.0,117540.0,0.3608]
[1753804632187,0.6219341,117540.0,117530.0,0.3608]
[1753804632491,0.7419341,117540.0,117530.0,0.3608]
[1753804632690,0.7419341,117540.0,117530.0,1.0642]
[1753804633482,0.7419341,117540.0,117530.0,0.3608]
[1753804633696,0.7419341,117540.0,117530.0,1.06416]
[1753804634191,0.75023595,117540.0,117530.0,1.06416]
[1753804634690,0.75023595,117540.0,117520.0,0.6160878]
[1753804634691,0.6147681,117530.0,117520.0,0.3608]
[1753804634893,0.7347681,117530.0,117520.0,0.7216]
[1753804635786,0.7347681,117530.0,117520.0,0.7276]
[1753804636092,0.7347681,117530.0,117520.0,0.8977926]
[1753804641789,0.7347681,117530.0,117520.0,0.7276]
[1753804642189,1.07704413,117530.0,117520.0,0.7276]
[1753804642698,1.07704413,117530.0,117520.0,1.43088]
[1753804643399,1.78032413,117530.0,117520.0,0.7276]
[1753804643591,1.4380481,117530.0,117520.0,0.8977923]
[1753804644393,0.7347681,117530.0,117520.0,0.8977923]
[1753804644595,0.34756,117530.0,117520.0,1.24006833]
[1753804644790,0.3374578,117530.0,117520.0,1.24006833]
[1753804645099,0.12,117530.0,117520.0,1.94330833]
[1753804649994,0.16728,117530.0,117520.0,1.94330833]
[1753804651995,0.4185183,117530.0,117520.0,1.24006833]
[1753804652196,0.7347683,117530.0,117520.0,0.8977923]
[1753804652401,0.7347683,117530.0,117520.0,1.6007923]
[1753804657202,0.7347683,117530.0,117520.0,1.6006723]
[1753804661809,0.7347683,117530.0,117520.0,1.6005523]
[1753804665609,0.7347679,117530.0,117520.0,1.6005523]
[1753804671913,1.07704393,117530.0,117520.0,1.6003528]
[1753804672214,0.7347679,117530.0,117520.0,1.6003528]
[1753804672814,0.97822424,117530.0,117520.0,1.6003528]
[1753804673713,1.68070424,117530.0,117520.0,0.8977928]
[1753804673915,1.68070424,117530.0,117520.0,0.7276]
[1753804674317,1.68070424,117530.0,117520.0,0.8977925]
[1753804674615,1.68070424,117530.0,117520.0,0.7276]
[1753804675615,1.68070424,117530.0,117520.0,0.3668]
[1753804676116,1.68070424,117530.0,117520.0,0.5369927]
[1753804676517,1.68070424,117530.0,117520.0,0.3668]
[1753804677116,1.68070424,117530.0,117520.0,0.5369927]
[1753804677311,0.1702072,117510.0,117500.0,0.42198585]
[1753804677518,0.1702072,117510.0,117490.0,0.42198585]
[1753804677519,0.3385517,117500.0,117490.0,0.42198585]
[1753804677715,0.5508162,117490.0,117480.0,0.3608]
[1753804678021,1.65445254,117490.0,117480.0,0.3608]
[1753804680029,1.66382317,117490.0,117480.0,0.3608]
[1753804680522,1.66382317,117490.0,117480.0,0.3618]
[1753804680820,1.42036683,117490.0,117480.0,0.3618]
[1753804683424,1.42036683,117490.0,117480.0,0.5320507]
[1753804684025,1.42036683,117490.0,117480.0,0.3618]
[1753804685627,1.42036683,117490.0,117480.0,0.5320504]
[1753804686315,0.28960683,117490.0,117480.0,0.5320504]
[1753804686517,0.111,117490.0,117480.0,1.57689633]
[1753804686722,0.7096762,117490.0,117480.0,0.5320504]
[1753804687022,0.7096762,117490.0,117480.0,0.3618]
[1753804687224,0.7096762,117490.0,117480.0,1.2342507]
[1753804687726,0.7181847,117490.0,117480.0,1.2342507]
[1753804687923,0.15886,117490.0,117480.0,1.57685663]
[1753804688827,0.15886,117490.0,117480.0,1.2342507]
[1753804690128,0.3290959,117490.0,117480.0,1.2342507]
[1753804691328,0.7096759,117490.0,117480.0,1.2342507]
[1753804691923,0.6392361,117490.0,117480.0,1.2342507]
[1753804693437,0.7096761,117490.0,117480.0,1.2342507]
[1753804694430,0.53944,117490.0,117480.0,1.2342507]
[1753804694630,0.7096758,117490.0,117480.0,1.2342507]
[1753804694831,0.7096758,117490.0,117480.0,1.57685663]
[1753804694832,0.111,117490.0,117480.0,1.57685663]
[1753804696320,0.111,117490.0,117480.0,1.99708863]
[1753804697231,0.111,117490.0,117480.0,2.0580863]
[1753804697435,0.111,117490.0,117480.0,1.99708863]
[1753804698136,0.111,117490.0,117480.0,1.29488863]
[1753804698430,0.3280161,117490.0,117480.0,1.2338907]
[1753804698636,0.7043161,117490.0,117480.0,0.5320507]
[1753804699023,0.7043161,117490.0,117480.0,1.2338107]
[1753804699525,0.7043161,117490.0,117480.0,0.5320507]
[1753804699729,0.7043161,117490.0,117480.0,1.2338107]
[1753804700229,0.7043161,117490.0,117480.0,1.2337707]
[1753804701232,0.7043161,117490.0,117480.0,0.5320507]
[1753804701434,0.7043161,117490.0,117480.0,1.2337307]
[1753804702235,0.7043161,117490.0,117480.0,0.5320507]
[1753804702438,0.7043161,117490.0,117480.0,1.2337307]
[1753804702834,0.7043161,117490.0,117480.0,1.2336907]
[1753804706741,0.7043161,117490.0,117480.0,1.47724878]
[1753804708241,0.7043161,117490.0,117480.0,1.2336907]
[1753804710240,0.94787418,117490.0,117480.0,0.3618]
[1753804710444,0.94787418,117490.0,117480.0,0.001]
[1753804710934,0.7043161,117490.0,117480.0,0.3618]
[1753804711343,0.7043161,117490.0,117480.0,0.5320503]
[1753804711541,0.4974561,117490.0,117480.0,1.47692838]
[1753804712036,0.3280161,117490.0,117480.0,1.47692838]
[1753804712445,0.4673461,117490.0,117480.0,1.47692838]
[1753804712637,0.7043161,117490.0,117480.0,1.47692838]
[1753804718239,0.7043161,117490.0,117480.0,1.53814305]
[1753804719341,0.7043161,117490.0,117480.0,1.29458497]
[1753804719545,0.7043161,117490.0,117480.0,1.53814305]
[1753804720045,0.7043161,117490.0,117480.0,1.29458497]
[1753804720246,0.7043161,117490.0,117480.0,1.53814305]
[1753804721950,0.7043161,117490.0,117480.0,0.83682305]
[1753804722155,0.7043161,117490.0,117480.0,1.2329703]
[1753804722646,0.94787418,117490.0,117480.0,0.001]
[1753804723742,0.94787418,117490.0,117480.0,0.3618]
[1753804723943,0.94787418,117490.0,117480.0,0.001]
[1753804724144,1.89226816,117490.0,117470.0,0.42201467]
[1753804724348,1.08596666,117480.0,117470.0,0.3608]
[1753804724545,0.598865,117470.0,117460.0,0.06121467]
[1753804724855,0.5988795,117460.0,117450.0,0.42201467]
[1753804725044,0.96243758,117460.0,117450.0,0.06121467]
[1753804725245,0.96243758,117460.0,117450.0,0.23150867]
[1753804725745,0.96243758,117460.0,117450.0,0.170294]
[1753804725945,1.66323758,117460.0,117450.0,0.170294]
[1753804726947,1.66323758,117460.0,117450.0,0.172294]
[1753804727350,1.73251029,117460.0,117450.0,0.172294]
[1753804727746,1.73251029,117460.0,117450.0,0.174294]
[1753804728447,1.73251029,117460.0,117450.0,0.535094]
[1753804729553,1.74114525,117460.0,117450.0,0.535094]
[1753804730048,0.79678717,117460.0,117450.0,0.535094]
[1753804730248,1.26219446,117460.0,117450.0,0.78124208]
[1753804730449,0.12,117460.0,117450.0,0.78124208]
[1753804730756,0.12,117460.0,117450.0,1.55844042]
[1753804730951,0.05089451,117460.0,117450.0,1.48192208]
[1753804735852,0.05089451,117460.0,117450.0,1.92137164]
[1753804736550,0.04989451,117460.0,117450.0,1.92137164]
[1753804738060,0.04798,117480.0,117470.0,0.170265]
[1753804738358,0.3282305,117480.0,117470.0,1.83586308]
[1753804738553,0.15798,117480.0,117470.0,1.83586308]
[1753804739054,0.11,117480.0,117470.0,1.83586308]
[1753804739256,0.11,117480.0,117470.0,2.00611108]
[1753804739958,0.11,117480.0,117470.0,1.762553]
[1753804740156,0.11,117480.0,117470.0,2.00611108]
[1753804740354,0.15798,117480.0,117470.0,2.00611108]
[1753804741052,0.15898,117480.0,117470.0,2.0145097]
[1753804742650,0.15898,117480.0,117470.0,1.8442617]
[1753804743462,0.32502,117480.0,117470.0,1.1438217]
[1753804743654,0.5396,117480.0,117470.0,1.8440217]
[1753804745464,0.5396,117480.0,117470.0,1.1438217]
[1753804745662,0.7098505,117480.0,117470.0,1.591945]
[1753804746763,0.7098505,117480.0,117470.0,1.84411175]
[1753804747064,0.5396,117480.0,117470.0,1.84411175]
[1753804747565,0.5396,117480.0,117470.0,1.84407175]
[1753804747765,0.5396,117480.0,117470.0,1.14403175]
[1753804747965,0.5396,117480.0,117470.0,1.84399175]
[1753804749156,0.7098503,117480.0,117470.0,1.83538308]
[1753804749565,0.5396,117480.0,117470.0,1.83538308]
[1753804750067,0.5396,117480.0,117470.0,1.84390335]
[1753804750256,0.7098505,117480.0,117470.0,1.83538308]
[1753804750866,0.5396,117480.0,117470.0,1.83538308]
[1753804751966,0.7098507,117480.0,117470.0,1.84384981]
[1753804752166,0.7098507,117480.0,117470.0,1.83538308]
[1753804752368,0.5396,117480.0,117470.0,1.83538308]
[1753804752667,0.7098505,117480.0,117470.0,1.84380136]
[1753804752864,0.5396,117480.0,117470.0,1.84380136]
[1753804754167,0.7098505,117480.0,117470.0,1.83538308]
[1753804754867,0.5396,117480.0,117470.0,1.83538308]
[1753804755067,0.5396,117480.0,117470.0,1.844047]
[1753804755570,0.7098507,117480.0,117470.0,1.83538308]
[1753804755868,0.7098507,117480.0,117470.0,1.13542308]
[1753804756068,0.95340878,117480.0,117470.0,0.8918652]
[1753804756272,0.95340878,117480.0,117470.0,1.4212]
[1753804756567,0.7098507,117480.0,117470.0,1.83502328]
[1753804757469,0.5438107,117480.0,117470.0,1.83502328]
[1753804757670,0.5438107,117480.0,117470.0,1.5914652]
[1753804757859,0.2812507,117480.0,117470.0,0.8918652]
[1753804758064,0.2812507,117480.0,117470.0,1.5913852]
[1753804760568,0.111,117480.0,117470.0,1.83494328]
[1753804760870,0.2812507,117480.0,117470.0,1.83494328]
[1753804762271,0.111,117480.0,117470.0,1.83494328]
[1753804762671,0.281251,117480.0,117470.0,1.83494328]
[1753804763970,0.111,117480.0,117470.0,1.83494328]
[1753804766274,0.15739,117480.0,117470.0,1.83494328]
[1753804766875,0.45866,117480.0,117470.0,1.83494328]
[1753804767066,0.53321,117480.0,117470.0,1.83494328]
[1753804767272,0.703461,117480.0,117470.0,1.83494328]
[1753804767671,0.6289108,117480.0,117470.0,1.83494328]
[1753804767877,0.7034608,117480.0,117470.0,1.83494328]
[1753804768478,0.53321,117480.0,117470.0,1.83494328]
[1753804768674,0.7034608,117480.0,117470.0,1.83494328]
[1753804770381,0.94701888,117480.0,117470.0,0.8918652]
[1753804770575,0.94701888,117480.0,117470.0,0.7216]
[1753804770780,0.94701888,117480.0,117470.0,1.4206]
[1753804771581,0.94701888,117480.0,117470.0,0.7216]
[1753804771779,0.94701888,117480.0,117470.0,1.5908657]
[1753804771976,0.94701888,117480.0,117470.0,1.5908257]
[1753804772386,0.7034608,117480.0,117470.0,1.5908257]
[1753804772685,0.94701888,117480.0,117470.0,1.5908257]
[1753804772978,0.7034608,117480.0,117470.0,1.42056]
[1753804773282,1.0461334,117480.0,117470.0,1.42056]
[1753804773683,0.7034608,117480.0,117470.0,1.5908254]
[1753804773982,0.7034608,117480.0,117470.0,0.8918654]
[1753804778987,0.5312608,117480.0,117470.0,0.8918654]
[1753804779887,0.2812508,117480.0,117470.0,0.8918654]
[1753804780086,0.2812508,117480.0,117470.0,0.7216]
[1753804780287,0.2812508,117480.0,117470.0,0.8918657]
[1753804781581,0.1702805,117460.0,117450.0,1.41018678]
[1753804781781,0.2802805,117460.0,117450.0,1.77098678]
[1753804782095,0.2802805,117460.0,117450.0,1.69446844]
[1753804782792,0.3266705,117460.0,117450.0,1.69446844]
[1753804783092,0.3266705,117460.0,117450.0,1.69646844]
[1753804783293,0.3266705,117460.0,117450.0,1.77298678]
[1753804783792,0.3266705,117460.0,117450.0,1.77498678]
[1753804784192,0.2802805,117460.0,117450.0,1.77498678]
[1753804785590,0.3288905,117460.0,117450.0,1.77498678]
[1753804786587,0.3288905,117460.0,117450.0,1.69846844]
[1753804786787,0.3288905,117460.0,117450.0,1.77498678]
[1753804787292,0.2802805,117460.0,117450.0,1.77498678]
[1753804788593,0.2802805,117460.0,117450.0,1.69846844]
[1753804788895,0.3288905,117460.0,117450.0,1.69846844]
[1753804790994,0.3288905,117460.0,117450.0,1.6797066]
[1753804793198,0.15861,117460.0,117450.0,1.6797066]
[1753804794391,0.1670199,117460.0,117450.0,1.6797066]
[1753804794595,0.2986499,117460.0,117450.0,1.6797066]
[1753804794796,0.4724099,117460.0,117450.0,0.9810266]
[1753804794996,0.5419599,117460.0,117450.0,1.6791866]
[1753804795587,0.5419599,117460.0,117450.0,0.9810266]
[1753804795793,0.5419599,117460.0,117450.0,1.6791466]
[1753804796291,0.5419599,117460.0,117450.0,0.9810266]
[1753804796492,0.4103299,117460.0,117450.0,1.593963]
[1753804796697,0.78567259,117460.0,117450.0,1.593963]
[1753804797394,0.78567259,117460.0,117450.0,1.42368]
[1753804797799,0.5419599,117460.0,117450.0,1.42368]
[1753804797994,0.5419599,117460.0,117450.0,0.7256]
[1753804798203,0.5419599,117460.0,117450.0,1.42364]
[1753804798505,0.78567259,117460.0,117450.0,1.42364]
[1753804798799,0.5419599,117460.0,117450.0,1.06284]
[1753804799002,0.5419599,117460.0,117450.0,0.3648]
[1753804799197,0.78567259,117460.0,117450.0,0.3648]
[1753804800603,0.53355,117460.0,117450.0,0.3648]
[1753804801405,0.11,117460.0,117450.0,0.7256]
[1753804802599,0.11,117460.0,117450.0,0.8958942]
[1753804803400,0.42355,117480.0,117460.0,0.1702789]
[1753804803699,0.42355,117480.0,117470.0,1.41944]
[1753804804099,0.37494,117480.0,117470.0,1.41944]
[1753804805203,0.48494,117480.0,117470.0,0.7216]
[1753804805404,0.23448,117480.0,117470.0,0.3608]
[1753804805698,0.37494,117480.0,117470.0,0.3608]
[1753804805905,0.37494,117480.0,117460.0,0.9541691]
[1753804806107,0.37494,117480.0,117470.0,0.7216]
[1753804806802,0.30539,117480.0,117470.0,0.8918659]
[1753804807104,0.2979112,117500.0,117470.0,0.8918659]
[1753804807105,0.5451748,117500.0,117480.0,0.212813]
[1753804807309,0.5451624,117500.0,117490.0,0.7216]
[1753804807497,0.37494,117500.0,117490.0,0.7216]
[1753804807805,0.8664631,117520.0,117490.0,0.9769545]
[1753804808107,0.5451478,117510.0,117500.0,1.0584]
[1753804809010,0.5451477,117510.0,117500.0,1.0584]
[1753804810709,0.5491477,117510.0,117500.0,1.0584]
[1753804810909,0.5521477,117510.0,117500.0,1.0584]
[1753804811209,0.5521477,117510.0,117500.0,0.3608]
[1753804811415,0.6621477,117510.0,117500.0,0.43718117]
[1753804811915,0.5451624,117500.0,117490.0,1.13462117]
[1753804812502,0.6551624,117500.0,117490.0,0.3608]
[1753804812707,0.5451624,117500.0,117490.0,0.43717805]
[1753804813316,0.5471624,117500.0,117490.0,0.43717805]
[1753804813505,0.5501624,117500.0,117490.0,0.43717805]
[1753804814206,0.5501624,117500.0,117490.0,0.3608]
[1753804814408,0.5501624,117500.0,117490.0,0.43717805]
[1753804814604,0.6401624,117500.0,117490.0,0.3608]
[1753804815008,0.5368867,117490.0,117480.0,0.43717805]
[1753804815713,0.6268867,117490.0,117480.0,0.43717805]
[1753804815914,0.5368867,117490.0,117480.0,0.43717805]
[1753804816110,0.6468867,117490.0,117480.0,0.43717805]
[1753804816317,0.3389216,117480.0,117470.0,0.43717805]
[1753804816522,0.6569016,117480.0,117470.0,0.43717998]
[1753804817110,1.0177016,117480.0,117470.0,0.07637998]
[1753804817313,0.2031259,117470.0,117460.0,0.07637998]
[1753804817615,1.3441559,117470.0,117460.0,0.07637998]
[1753804817804,1.5144199,117470.0,117460.0,0.07637998]
[1753804818009,1.5144199,117470.0,117450.0,0.3608]
[1753804818010,0.3389512,117460.0,117450.0,0.3608]
[1753804818219,0.6369312,117460.0,117450.0,0.46773364]
[1753804819312,0.5369312,117460.0,117450.0,0.46773364]
[1753804819518,0.6469312,117460.0,117450.0,0.46773364]
[1753804819713,0.5369312,117460.0,117450.0,0.46773364]
[1753804819920,0.5369312,117460.0,117450.0,0.10893364]
[1753804820217,0.5369312,117460.0,117450.0,0.002]
[1753804820416,0.6469312,117460.0,117450.0,0.002]
[1753804820715,0.5369312,117460.0,117450.0,0.09684]
[1753804821012,0.6369312,117460.0,117450.0,0.17070364]
[1753804821212,0.5369312,117460.0,117450.0,0.2470729]
[1753804821408,0.5369312,117460.0,117450.0,0.14013926]
[1753804821409,0.6369312,117460.0,117450.0,0.14013926]
[1753804821617,0.5369312,117460.0,117450.0,0.14013926]
[1753804821811,0.5369312,117460.0,117450.0,0.53400926]
[1753804822017,0.5369312,117460.0,117450.0,0.17320926]
[1753804822216,0.6469312,117460.0,117450.0,0.17320926]
[1753804823120,0.5369312,117460.0,117450.0,0.17320926]
[1753804823909,0.5369312,117460.0,117450.0,0.53400926]
[1753804824311,0.5369312,117460.0,117450.0,0.17320926]
[1753804824918,0.5369312,117460.0,117450.0,0.08036926]
[1753804825325,0.5669312,117460.0,117450.0,0.08036926]
[1753804825523,0.5669312,117460.0,117450.0,0.14013926]
[1753804825724,0.5669312,117460.0,117450.0,0.50093926]
[1753804826520,0.5669312,117460.0,117450.0,0.14013926]
[1753804826928,0.5669312,117460.0,117450.0,0.17320926]
[1753804827436,0.5669312,117460.0,117450.0,0.09684]
[1753804828133,0.5669312,117460.0,117450.0,0.45764]
[1753804828933,0.5669312,117460.0,117450.0,0.09684]
[1753804829630,0.5669312,117460.0,117450.0,0.54376]
[1753804829830,0.5669312,117460.0,117450.0,0.5888]
[1753804830632,0.5669312,117460.0,117450.0,0.30436926]
[1753804830834,0.69401242,117460.0,117450.0,0.08036926]
[1753804831030,0.5369452,117450.0,117440.0,0.0596]
[1753804831237,1.2639852,117450.0,117440.0,0.0596]
[1753804831429,0.69402642,117450.0,117440.0,0.0596]
[1753804831627,1.2639852,117450.0,117440.0,0.58795]
[1753804831831,0.3689652,117450.0,117440.0,0.89261]
[1753804832029,0.5669452,117450.0,117440.0,0.76734]
[1753804832332,0.5669452,117450.0,117440.0,0.93765]
[1753804833134,0.5669452,117450.0,117440.0,0.93965]
[1753804833632,0.5669452,117450.0,117440.0,0.45547]
[1753804833833,0.5669452,117450.0,117440.0,0.4224]
[1753804834540,1.3109052,117450.0,117440.0,0.22902]
[1753804834738,0.6139052,117450.0,117440.0,0.7243]
[1753804834939,0.6139052,117450.0,117440.0,0.76934]
[1753804835141,1.3108652,117450.0,117440.0,0.76934]
[1753804835840,0.6139052,117450.0,117440.0,0.77134]
[1753804836629,0.6139052,117450.0,117440.0,0.0636]
[1753804836630,0.9747052,117450.0,117440.0,0.0636]
[1753804836839,1.1450012,117450.0,117440.0,0.0636]
[1753804844147,1.8418812,117450.0,117440.0,0.0636]
[1753804845352,1.1450012,117450.0,117440.0,0.0636]
[1753804845547,1.8418412,117450.0,117440.0,0.0636]
[1753804849055,1.8418012,117450.0,117440.0,0.12057]
[1753804849255,1.8418012,117450.0,117440.0,0.1938]
[1753804849553,1.8418012,117450.0,117440.0,0.12057]
[1753804849758,0.9747052,117450.0,117440.0,0.12057]
[1753804849950,1.6714652,117450.0,117440.0,0.12057]
[1753804850442,0.24563,117450.0,117440.0,0.1421]
[1753804850647,0.24563,117450.0,117440.0,0.9411999]
[1753804851149,0.23563,117450.0,117440.0,1.6379199]
[1753804851345,0.44047,117450.0,117440.0,1.6379199]
[1753804851545,0.44047,117450.0,117440.0,1.71419803]
[1753804851850,0.44047,117450.0,117440.0,1.6379199]
[1753804852052,0.44047,117450.0,117440.0,1.71419803]
[1753804852552,0.06768,117450.0,117440.0,1.71419803]
[1753804853450,0.43498,117450.0,117440.0,1.71419803]
[1753804853649,0.43498,117450.0,117440.0,1.6379199]
[1753804855149,0.42498,117450.0,117440.0,1.6379199]
[1753804855853,0.42498,117450.0,117440.0,1.74485354]
[1753804857157,0.42498,117450.0,117440.0,1.5783199]
[1753804858951,0.42498,117450.0,117440.0,1.65481312]
[1753804859153,0.41498,117450.0,117440.0,1.65481312]
[1753804859454,0.41498,117450.0,117440.0,1.65461312]
[1753804860561,0.42498,117450.0,117440.0,1.65461312]
[1753804860757,0.5209367,117450.0,117440.0,0.95809312]
[1753804860952,1.6525567,117450.0,117440.0,0.14009322]